fUSD/lending_fUSD_20240727
["ID","MTS","AMOUNT","RATE_DAILY","PERIOD"]
[333391559,1722099049937,-500.0,0.00010958,2]
[333391560,1722099049947,-216.28,0.00010958,2]
[333391561,1722099049958,-500.0,0.00010958,2]
[333391562,1722099049967,-500.0,0.00010958,2]
[333391563,1722099049977,-500.0,0.00010958,2]
[333391564,1722099049986,-500.0,0.00010958,2]
[333391565,1722099049996,-500.0,0.00010958,2]
[333391566,1722099050006,-510.95105421,0.00010958,2]
[333391567,1722099050016,-507.87893566,0.00010958,2]
[333391568,1722099050027,-500.0,0.00010958,2]
[333391569,1722099050037,-500.0,0.00010958,2]
[333391570,1722099050047,-500.0,0.00010958,2]
[333391571,1722099050058,-500.0,0.00010958,2]
[333391572,1722099050068,-500.0,0.00010958,2]
[333391573,1722099050077,-501.01028197,0.00010958,2]
[333391574,1722099050090,-500.0,0.00010958,2]
[333391575,1722099050101,-500.0,0.00010958,2]
[333391576,1722099050112,-500.0,0.00010958,2]
[333391577,1722099050122,-500.0,0.00010958,2]
[333391578,1722099050132,-500.0,0.00010958,2]
[333391579,1722099050141,-500.0,0.00010958,2]
[333391580,1722099050151,-500.0,0.00010958,2]
[333391581,1722099050162,-500.0,0.00010958,2]
[333391582,1722099050172,-500.0,0.00010958,2]
[333391583,1722099050181,-500.0,0.00010958,2]
[333391584,1722099050191,-500.0,0.00010958,2]
[333391585,1722099050201,-500.0,0.00010958,2]
[333391586,1722099050211,-408.18477434,0.00010958,2]
[333391587,1722099050221,-500.0,0.00010958,2]
[333391588,1722099050231,-500.0,0.00010958,2]
[333391589,1722099050240,-500.0,0.00010958,2]
[333391590,1722099050250,-238.40474325,0.00010958,2]
[333391591,1722099050262,-500.0,0.00010958,2]
[333391592,1722099050272,-500.0,0.00010958,2]
[333391593,1722099050281,-367.0963625,0.00010958,2]
[333391594,1722099050291,-500.0,0.00010958,2]
[333391595,1722099050302,-500.0,0.00010958,2]
[333391596,1722099050311,-500.0,0.00010958,2]
[333391597,1722099050322,-500.0,0.00010958,2]
[333391598,1722099050331,-500.0,0.00010958,2]
[333391599,1722099050341,-517.97,0.00010958,2]
[333391600,1722099050351,-500.0,0.00010958,2]
[333391601,1722099050360,-198.11,0.00010958,2]
[333391602,1722099050370,-500.0,0.00010958,2]
[333391603,1722099050379,-504.54049648,0.00010958,2]
[333391604,1722099050389,-500.0,0.00010958,2]
[333391605,1722099050398,-535.16,0.00010958,2]
[333391606,1722099050407,-500.0,0.00010958,2]
[333391607,1722099050417,-500.0,0.00010958,2]
[333391608,1722099050426,-500.0,0.00010958,2]
[333391609,1722099050435,-167.40068871,0.00010958,2]
[333391610,1722099050445,-500.0,0.00010958,2]
[333391611,1722099050454,-346.70371969,0.00010958,2]
[333391612,1722099050464,-500.0,0.00010958,2]
[333391613,1722099050473,-500.0,0.00010958,2]
[333391614,1722099050483,-500.0,0.00010958,2]
[333391615,1722099050492,-178.50303288,0.00010958,2]
[333391616,1722099050501,-200.0,0.00010958,2]
[333391617,1722099050511,-500.0,0.00010958,2]
[333391618,1722099050522,-500.0,0.00010958,2]
[333391619,1722099050532,-500.0,0.00010958,2]
[333391620,1722099050543,-500.0,0.00010958,2]
[333391621,1722099050552,-362.1474883,0.00010958,2]
[333391622,1722099050562,-500.0,0.00010958,2]
[333391623,1722099050571,-647.66,0.00010958,2]
[333391624,1722099050581,-500.0,0.00010958,2]
[333391625,1722099050590,-500.0,0.00010958,2]
[333391626,1722099050600,-507.4,0.00010958,2]
[333391627,1722099050609,-500.0,0.00010958,2]
[333391628,1722099050618,-500.0,0.00010958,2]
[333391629,1722099050628,-500.0,0.00010958,2]
[333391630,1722099050639,-500.0,0.00010958,2]
[333391631,1722099050648,-500.0,0.00010958,2]
[333391632,1722099050658,-300.29434786,0.00010958,2]
[333391633,1722099050667,-500.0,0.00010958,2]
[333391634,1722099050676,-500.0,0.00010958,2]
[333391635,1722099050685,-500.0,0.00010958,2]
[333391636,1722099050696,-500.0,0.00010958,2]
[333391637,1722099050707,-500.0,0.00010958,2]
[333391638,1722099050716,-500.0,0.00010958,2]
[333391639,1722099050725,-500.0,0.00010958,2]
[333391640,1722099050735,-500.0,0.00010958,2]
[333391641,1722099050747,-500.0,0.00010958,2]
[333391642,1722099050756,-587.22492568,0.00010958,2]
[333391643,1722099050765,-500.0,0.00010958,2]
[333391644,1722099050776,-500.0,0.00010958,2]
[333391645,1722099050786,-500.0,0.00010958,2]
[333391646,1722099050796,-500.0,0.00010958,2]
[333391647,1722099050807,-500.0,0.00010958,2]
[333391648,1722099050816,-500.0,0.00010958,2]
[333391649,1722099050825,-500.0,0.00010958,2]
[333391650,1722099050836,-397.33071257,0.00010958,2]
[333391651,1722099050845,-546.29,0.00010958,2]
[333391652,1722099050856,-500.0,0.00010958,2]
[333391653,1722099050866,-500.0,0.00010958,2]
[333391654,1722099050876,-500.0,0.00010958,2]
[333391655,1722099050887,-500.0,0.00010958,2]
[333391656,1722099050896,-593.12,0.00010958,2]
[333391657,1722099050906,-522.37394471,0.00010958,2]
[333391658,1722099050915,-500.0,0.00010958,2]
[333391659,1722099050924,-500.0,0.00010958,2]
[333391660,1722099050934,-512.32178635,0.00010958,2]
[333391661,1722099050943,-500.0,0.00010958,2]
[333391662,1722099050953,-500.0,0.00010958,2]
[333391663,1722099050963,-500.0,0.00010958,2]
[333391664,1722099050974,-341.2255259,0.00010958,2]
[333391665,1722099050985,-500.0,0.00010958,2]
[333391666,1722099050995,-500.0,0.00010958,2]
[333391667,1722099051004,-500.0,0.00010958,2]
[333391668,1722099051014,-500.0,0.00010958,2]
[333391669,1722099051025,-500.0,0.00010958,2]
[333391670,1722099051035,-500.0,0.00010958,2]
[333391671,1722099051046,-500.0,0.00010958,2]
[333391672,1722099051056,-500.0,0.00010958,2]
[333391673,1722099051066,-500.0,0.00010958,2]
[333391674,1722099051075,-500.0,0.00010958,2]
[333391675,1722099051084,-500.0,0.00010958,2]
[333391676,1722099051094,-500.0,0.00010958,2]
[333391677,1722099051103,-500.0,0.00010958,2]
[333391678,1722099051113,-500.0,0.00010958,2]
[333391679,1722099051123,-635.96,0.00010958,2]
[333391680,1722099051132,-500.0,0.00010958,2]
[333391681,1722099051184,-500.0,0.00010958,2]
[333391682,1722099051195,-500.0,0.00010958,2]
[333391683,1722099051205,-500.0,0.00010958,2]
[333391684,1722099051214,-500.0,0.00010958,2]
[333391685,1722099051224,-500.0,0.00010958,2]
[333391686,1722099051236,-500.0,0.00010958,2]
[333391687,1722099051244,-500.0,0.00010958,2]
[333391688,1722099051256,-500.0,0.00010958,2]
[333391689,1722099051269,-500.0,0.00010958,2]
[333391690,1722099051278,-500.0,0.00010958,2]
[333391691,1722099051288,-500.0,0.00010958,2]
[333391692,1722099051299,-500.0,0.00010958,2]
[333391693,1722099051308,-500.0,0.00010958,2]
[333391694,1722099051317,-500.0,0.00010958,2]
[333391695,1722099051326,-500.0,0.00010958,2]
[333391696,1722099051339,-500.0,0.00010958,2]
[333391697,1722099051349,-500.0,0.00010958,2]
[333391698,1722099051358,-500.0,0.00010958,2]
[333391699,1722099051367,-500.0,0.00010958,2]
[333391700,1722099051377,-500.0,0.00010958,2]
[333391701,1722099051388,-512.56116408,0.00010958,2]
[333391702,1722099051398,-243.75025221,0.00010958,2]
[333391703,1722099051407,-500.0,0.00010958,2]
[333391704,1722099051417,-322.54121059,0.00010958,2]
[333391705,1722099051427,-500.0,0.00010958,2]
[333391706,1722099051436,-349.56034246,0.00010958,2]
[333391707,1722099051447,-500.0,0.00010958,2]
[333391708,1722099051458,-500.0,0.00010958,2]
[333391709,1722099051468,-500.0,0.00010958,2]
[333391710,1722099051480,-500.0,0.00010958,2]
[333391711,1722099051490,-495.35767789,0.00010958,2]
[333391712,1722099051499,-500.0,0.00010958,2]
[333391713,1722099051508,-500.0,0.00010958,2]
[333391714,1722099051517,-500.0,0.00010958,2]
[333391715,1722099051526,-197.7,0.00010958,2]
[333391716,1722099051536,-500.0,0.00010958,2]
[333391717,1722099051545,-500.0,0.00010958,2]
[333391718,1722099051554,-500.0,0.00010958,2]
[333391719,1722099051563,-504.4,0.00010958,2]
[333391720,1722099051573,-646.78873451,0.00010958,2]
[333391721,1722099051583,-500.0,0.00010958,2]
[333391722,1722099051592,-500.0,0.00010958,2]
[333391723,1722099051601,-501.79924932,0.00010958,2]
[333391724,1722099051611,-500.0,0.00010958,2]
[333391725,1722099051621,-640.99,0.00010958,2]
[333391726,1722099051631,-500.0,0.00010958,2]
[333391727,1722099051641,-645.32,0.00010958,2]
[333391728,1722099051651,-500.0,0.00010958,2]
[333391729,1722099051661,-500.0,0.00010958,2]
[333391730,1722099051671,-500.0,0.00010958,2]
[333391731,1722099051681,-235.14,0.00010958,2]
[333391732,1722099051691,-500.0,0.00010958,2]
[333391733,1722099051701,-193.48,0.00010958,2]
[333391734,1722099051711,-500.0,0.00010958,2]
[333391735,1722099051721,-380.49,0.00010958,2]
[333391736,1722099051731,-500.0,0.00010958,2]
[333391737,1722099051740,-500.0,0.00010958,2]
[333391738,1722099051749,-500.0,0.00010958,2]
[333391739,1722099051759,-500.0,0.00010958,2]
[333391740,1722099051769,-500.0,0.00010958,2]
[333391741,1722099051779,-500.0,0.00010958,2]
[333391742,1722099051788,-500.0,0.00010958,2]
[333391743,1722099051798,-615.59183293,0.00010958,2]
[333391744,1722099051807,-500.0,0.00010958,2]
[333391745,1722099051816,-481.04,0.00010958,2]
[333391746,1722099051826,-500.0,0.00010958,2]
[333391747,1722099051835,-500.0,0.00010958,2]
[333391748,1722099051845,-516.71,0.00010958,2]
[333391749,1722099051854,-500.0,0.00010958,2]
[333391750,1722099051864,-191.72,0.00010958,2]
[333391751,1722099051873,-500.0,0.00010958,2]
[333391752,1722099051883,-501.39521708,0.00010958,2]
[333391753,1722099051892,-500.0,0.00010958,2]
[333391754,1722099051901,-500.0,0.00010958,2]
[333391755,1722099051911,-245.71,0.00010958,2]
[333391756,1722099051921,-497.03133282,0.00010958,2]
[333391757,1722099051931,-500.0,0.00010958,2]
[333391758,1722099051941,-500.0,0.00010958,2]
[333391759,1722099051950,-500.0,0.00010958,2]
[333391760,1722099051962,-308.49,0.00010958,2]
[333391761,1722099051972,-500.0,0.00010958,2]
[333391762,1722099051981,-500.0,0.00010958,2]
[333391763,1722099051991,-640.54362876,0.00010958,2]
[333391764,1722099052000,-500.0,0.00010958,2]
[333391765,1722099052009,-500.0,0.00010958,2]
[333391766,1722099052019,-500.0,0.00010958,2]
[333391767,1722099052029,-244.68094262,0.00010958,2]
[333391768,1722099052038,-500.0,0.00010958,2]
[333391769,1722099052048,-500.0,0.00010958,2]
[333391770,1722099052058,-500.0,0.00010958,2]
[333391771,1722099052068,-428.46337616,0.00010958,2]
[333391772,1722099052078,-500.0,0.00010958,2]
[333391773,1722099052087,-500.0,0.00010958,2]
[333391774,1722099052097,-500.0,0.00010958,2]
[333391775,1722099052106,-510.62550983,0.00010958,2]
[333391776,1722099052116,-500.0,0.00010958,2]
[333391777,1722099052126,-500.0,0.00010958,2]
[333391778,1722099052135,-500.0,0.00010958,2]
[333391779,1722099052145,-500.0,0.00010958,2]
[333391780,1722099052155,-500.0,0.00010958,2]
[333391781,1722099052165,-500.0,0.00010958,2]
[333391782,1722099052175,-564.41,0.00010958,2]
[333391783,1722099052185,-590.27,0.00010958,2]
[333391784,1722099052194,-500.0,0.00010958,2]
[333391785,1722099052205,-566.58188208,0.00010958,2]
[333391786,1722099052215,-500.0,0.00010958,2]
[333391787,1722099052224,-528.52,0.00010958,2]
[333391788,1722099052233,-500.0,0.00010958,2]
[333391789,1722099052243,-500.0,0.00010958,2]
[333391790,1722099052252,-500.0,0.00010958,2]
[333391791,1722099052266,-354.75409274,0.00010958,2]
[333391792,1722099052275,-500.0,0.00010958,2]
[333391793,1722099052284,-500.0,0.00010958,2]
[333391794,1722099052293,-500.0,0.00010958,2]
[333391795,1722099052303,-500.0,0.00010958,2]
[333391796,1722099052313,-500.0,0.00010958,2]
[333391797,1722099052322,-500.0,0.00010958,2]
[333391798,1722099052333,-500.0,0.00010958,2]
[333391799,1722099052343,-500.0,0.00010958,2]
[333391800,1722099052352,-626.27,0.00010958,2]
[333391801,1722099052362,-445.77880927,0.00010958,2]
[333391802,1722099052371,-500.0,0.00010958,2]
[333391803,1722099052381,-647.40890289,0.00010958,2]
[333391804,1722099052390,-500.0,0.00010958,2]
[333391805,1722099052399,-574.56,0.00010958,2]
[333391806,1722099052408,-255.0,0.00010958,2]
[333391807,1722099052418,-500.0,0.00010958,2]
[333391808,1722099052428,-223.45,0.00010958,2]
[333391809,1722099052437,-309.15154426,0.00010958,2]
[333391810,1722099052447,-500.0,0.00010958,2]
[333391811,1722099052458,-500.0,0.00010958,2]
[333391812,1722099052467,-605.27,0.00010958,2]
[333391813,1722099052477,-500.0,0.00010958,2]
[333391814,1722099052486,-500.0,0.00010958,2]
[333391815,1722099052495,-500.0,0.00010958,2]
[333391816,1722099052505,-500.0,0.00010958,2]
[333391817,1722099052515,-500.0,0.00010958,2]
[333391818,1722099052524,-500.0,0.00010958,2]
[333391819,1722099052534,-605.44471774,0.00010958,2]
[333391820,1722099052543,-500.0,0.00010958,2]
[333391821,1722099052552,-500.0,0.00010958,2]
[333391822,1722099052562,-500.0,0.00010958,2]
[333391823,1722099052571,-500.0,0.00010958,2]
[333391824,1722099052580,-500.0,0.00010958,2]
[333391825,1722099052590,-500.0,0.00010958,2]
[333391826,1722099052599,-500.0,0.00010958,2]
[333391827,1722099052609,-500.0,0.00010958,2]
[333391828,1722099052618,-530.0599,0.00010958,2]
[333391829,1722099052627,-500.0,0.00010958,2]
[333391830,1722099052637,-500.0,0.00010958,2]
[333391831,1722099052647,-500.0,0.00010958,2]
[333391832,1722099052656,-500.0,0.00010958,2]
[333391833,1722099052666,-217.21,0.00010958,2]
[333391834,1722099052675,-500.0,0.00010958,2]
[333391835,1722099052685,-500.0,0.00010958,2]
[333391836,1722099052695,-500.0,0.00010958,2]
[333391837,1722099052706,-500.0,0.00010958,2]
[333391838,1722099052715,-500.0,0.00010958,2]
[333391839,1722099052724,-500.0,0.00010958,2]
[333391840,1722099052734,-500.0,0.00010958,2]
[333391841,1722099052743,-500.0,0.00010958,2]
[333391842,1722099052752,-500.0,0.00010958,2]
[333391843,1722099052762,-500.0,0.00010958,2]
[333391844,1722099052771,-500.0,0.00010958,2]
[333391845,1722099052780,-500.0,0.00010958,2]
[333391846,1722099052789,-500.0,0.00010958,2]
[333391847,1722099052799,-500.0,0.00010958,2]
[333391848,1722099052808,-500.0,0.00010958,2]
[333391849,1722099052818,-500.0,0.00010958,2]
[333391850,1722099052827,-500.0,0.00010958,2]
[333391851,1722099052836,-500.0,0.00010958,2]
[333391852,1722099052845,-500.0,0.00010958,2]
[333391853,1722099052855,-500.0,0.00010958,2]
[333391854,1722099052864,-500.0,0.00010958,2]
[333391855,1722099052873,-500.0,0.00010958,2]
[333391856,1722099052883,-500.0,0.00010958,2]
[333391857,1722099052893,-500.0,0.00010958,2]
[333391858,1722099052902,-500.0,0.00010958,2]
[333391859,1722099052912,-500.0,0.00010958,2]
[333391860,1722099052921,-500.0,0.00010958,2]
[333391861,1722099052930,-500.0,0.00010958,2]
[333391862,1722099052940,-500.0,0.00010958,2]
[333391863,1722099052949,-500.0,0.00010958,2]
[333391864,1722099052959,-500.0,0.00010958,2]
[333391865,1722099052969,-500.0,0.00010958,2]
[333391866,1722099052978,-500.0,0.00010958,2]
[333391867,1722099052987,-189.47,0.00010958,2]
[333391868,1722099052997,-500.0,0.00010958,2]
[333391869,1722099053006,-500.0,0.00010958,2]
[333391870,1722099053016,-446.75942031,0.00010958,2]
[333391871,1722099053026,-500.0,0.00010958,2]
[333391872,1722099053035,-560.43792439,0.00010958,2]
[333391873,1722099053045,-500.0,0.00010958,2]
[333391874,1722099053054,-244.19713541,0.00010958,2]
[333391875,1722099053064,-500.0,0.00010958,2]
[333391876,1722099053074,-280.20336759,0.00010958,2]
[333391877,1722099053084,-500.0,0.00010958,2]
[333391878,1722099053094,-500.0,0.00010958,2]
[333391879,1722099053104,-500.0,0.00010958,2]
[333391880,1722099053113,-500.0,0.00010958,2]
[333391881,1722099053123,-500.0,0.00010958,2]
[333391882,1722099053133,-500.0,0.00010958,2]
[333391883,1722099053142,-500.0,0.00010958,2]
[333391884,1722099053152,-310.88398919,0.00010958,2]
[333391885,1722099053162,-500.0,0.00010958,2]
[333391886,1722099053171,-500.0,0.00010958,2]
[333391887,1722099053181,-500.0,0.00010958,2]
[333391888,1722099053191,-500.0,0.00010958,2]
[333391889,1722099053202,-150.16794331,0.00010958,2]
[333391890,1722099053211,-183.53156918,0.00010958,2]
[333391891,1722099053221,-813.13,0.00010958,2]
[333391892,1722099053231,-813.13,0.00010958,2]
[333391893,1722099053241,-813.13,0.00010958,2]
[333391894,1722099053251,-813.13,0.00010958,2]
[333391895,1722099053265,-813.13,0.00010958,2]
[333391896,1722099053275,-813.13,0.00010958,2]
[333391897,1722099053284,-813.13,0.00010958,2]
[333391898,1722099053294,-813.13,0.00010958,2]
[333391899,1722099053306,-813.13,0.00010958,2]
[333391900,1722099053316,-813.13,0.00010958,2]
[333391901,1722099053326,-813.13,0.00010958,2]
[333391902,1722099053338,-591.57,0.00010958,2]
[333391903,1722099053347,-500.0,0.00010958,2]
[333391904,1722099053357,-500.0,0.00010958,2]
[333391905,1722099053367,-500.0,0.00010958,2]
[333391906,1722099053377,-500.0,0.00010958,2]
[333391907,1722099053387,-500.0,0.00010958,2]
[333391908,1722099053396,-500.0,0.00010958,2]
[333391909,1722099053406,-500.0,0.00010958,2]
[333391910,1722099053415,-223.7629815,0.00010958,2]
[333391911,1722099053425,-535.19949081,0.00010958,2]
[333391912,1722099053435,-425.87538489,0.00010958,2]
[333391913,1722099053445,-498.12735912,0.00010958,2]
[333391914,1722099053455,-245.0,0.00010958,2]
[333391915,1722099053465,-500.0,0.00010958,2]
[333391916,1722099053475,-500.0,0.00010958,2]
[333391917,1722099053485,-500.0,0.00010958,2]
[333391918,1722099053495,-500.0,0.00010958,2]
[333391919,1722099053504,-500.0,0.00010958,2]
[333391920,1722099053514,-371.3,0.00010958,2]
[333391921,1722099053524,-1000.0,0.00010958,2]
[333391922,1722099053534,-1000.0,0.00010958,2]
[333391923,1722099053543,-697.93036673,0.00010958,2]
[333391924,1722099053804,-302.06963327,0.00010958,2]
[333391925,1722099053814,-197.93036673,0.00010958,2]
[333391926,1722099053827,-802.06963327,0.00010958,2]
[333391927,1722099053838,-342.18796435,0.00010958,2]
[333391928,1722099053849,-375.91078415,0.00010958,2]
[333391929,1722099053861,-500.0,0.00010958,2]
[333391930,1722099053871,-604.56,0.00010958,2]
[333391931,1722099053881,-500.0,0.00010958,2]
[333391932,1722099053890,-46.30425748,0.00010958,2]
[333391937,1722099238136,151.17,0.0001337,30]
[333391938,1722099331329,150.0,0.00016059,120]
[333391942,1722099510714,150.0,0.00019993,120]
[333391964,1722100231974,-505.32,8.219e-05,2]
[333391966,1722100231984,-163.7,8.219e-05,2]
[333391968,1722100231993,-150.0,9.479e-05,2]
[333391970,1722100232003,-1023.58,9.48e-05,2]
[333391972,1722100232016,-923.01,9.48e-05,2]
[333391974,1722100232026,-21698.13,9.48e-05,2]
[333391976,1722100232035,-171.97,9.499e-05,2]
[333391978,1722100232045,-500.0,9.626e-05,3]
[333391980,1722100232055,-385.82,9.691e-05,2]
[333391981,1722100232064,-480.0,9.691e-05,2]
[333391982,1722100232074,-520.0,9.881e-05,2]
[333391983,1722100232083,-150.0,9.888e-05,2]
[333391984,1722100232093,-200.0,9.9e-05,3]
[333391985,1722100232103,-12804.49110925,0.0001,2]
[333391986,1722100232113,-1250.0,0.0001,2]
[333391987,1722100232123,-500.0,0.0001,2]
[333391988,1722100232132,-500.0,0.0001,3]
[333391989,1722100232141,-5000.0,0.0001,2]
[333391990,1722100232151,-700.0,0.000101,3]
[333391991,1722100232161,-150.0,0.00010192,2]
[333391992,1722100232171,-150.0,0.00010192,2]
[333391993,1722100232180,-530.1,0.00010192,2]
[333391994,1722100232190,-425.65,0.00010192,2]
[333391995,1722100232199,-686.88,0.00010192,2]
[333391996,1722100232209,-150.0,0.00010192,2]
[333391997,1722100232219,-425.65,0.00010192,2]
[333391998,1722100232228,-530.1,0.00010192,2]
[333391999,1722100232237,-150.0,0.00010192,2]
[333392000,1722100232247,-425.65,0.00010192,2]
[333392001,1722100232256,-530.1,0.00010192,2]
[333392002,1722100232266,-150.0,0.00010192,2]
[333392004,1722100232276,-425.65,0.00010192,2]
[333392006,1722100232285,-530.1,0.00010192,2]
[333392007,1722100232294,-150.0,0.00010192,2]
[333392009,1722100232303,-150.0,0.00010192,2]
[333392011,1722100232314,-1000.0,0.000102,3]
[333392012,1722100232323,-303.07,0.00010278,2]
[333392014,1722100232333,-300.0,0.00010278,2]
[333392016,1722100232341,-151.68,0.00010278,2]
[333392018,1722100232350,-711.62,0.00010278,2]
[333392021,1722100232360,-528.3,0.00010278,2]
[333392024,1722100232370,-425.65,0.00010278,2]
[333392026,1722100232379,-849.27,0.00010278,2]
[333392028,1722100232389,-300.0,0.00010278,2]
[333392030,1722100232402,-1200.0,0.000103,3]
[333392032,1722100232416,-200.0,0.000104,3]
[333392034,1722100232425,-255.0,0.00010427,2]
[333392035,1722100232435,-505.32,0.00010455,2]
[333392036,1722100232444,-93760.0,0.0001046,2]
[333392037,1722100232454,-3455.5971,0.00010465,2]
[333392038,1722100232465,-492.44,0.00010465,2]
[333392039,1722100232474,-499.99,0.00010469,2]
[333392040,1722100232485,-7146.31,0.00010469,2]
[333392041,1722100232494,-689.4489,0.000105,2]
[333392042,1722100232505,-685.4,0.000105,2]
[333392043,1722100232514,-552.0701,0.000105,2]
[333392044,1722100232525,-150.0,0.000105,2]
[333392045,1722100232534,-500.0,0.000105,2]
[333392046,1722100232544,-200.0,0.000105,3]
[333392047,1722100232553,-466.9961,0.0001058,2]
[333392048,1722100232562,-200.0,0.000106,3]
[333392049,1722100232572,-20066.5825,0.0001068,2]
[333392050,1722100232582,-200.0,0.000107,3]
[333392051,1722100232592,-185.955392,0.00010747,2]
[333392052,1722100232601,-1000.0,0.00010764,2]
[333392053,1722100232834,-14926.9054,0.000108,2]
[333392054,1722100232844,-600.0,0.000108,3]
[333392055,1722100232853,-199.442,0.00010828,2]
[333392056,1722100232863,-1000.0,0.00010858,2]
[333392057,1722100232873,-7500.0,0.00010858,2]
[333392058,1722100232882,-150.0,0.00010864,2]
[333392059,1722100232892,-762.776,0.00010864,2]
[333392060,1722100232902,-450.0,0.00010864,2]
[333392061,1722100232911,-445.0,0.00010864,2]
[333392062,1722100232921,-234.362,0.00010864,2]
[333392063,1722100232931,-600.0,0.00010864,2]
[333392064,1722100232941,-5123.0,0.00010864,2]
[333392065,1722100232950,-1202.0,0.00010864,2]
[333392066,1722100232960,-562.3,0.00010864,2]
[333392067,1722100232970,-358.65846666,0.00010881,2]
[333392068,1722100232979,-358.65846666,0.00010882,2]
[333392069,1722100232988,-358.65846666,0.00010886,2]
[333392070,1722100232998,-168.12424796,0.00010899,2]
[333392071,1722100233007,-328.85448076,0.00010899,2]
[333392072,1722100233017,-328.85448067,0.00010899,2]
[333392073,1722100233026,-328.85448067,0.00010899,2]
[333392074,1722100233035,-328.85448067,0.00010899,2]
[333392075,1722100233045,-328.85448067,0.00010899,2]
[333392076,1722100233055,-328.85448067,0.00010899,2]
[333392077,1722100233066,-328.85448067,0.00010899,2]
[333392078,1722100233076,-328.85448067,0.00010899,2]
[333392079,1722100233086,-328.85448067,0.00010899,2]
[333392080,1722100233096,-179.37844276,0.000109,2]
[333392081,1722100233106,-179.37844276,0.000109,2]
[333392082,1722100233116,-174.46635943,0.000109,2]
[333392083,1722100233126,-187.04562962,0.000109,2]
[333392084,1722100233137,-177.34217462,0.000109,2]
[333392085,1722100233147,-1000.0,0.000109,2]
[333392086,1722100233157,-1000.0,0.000109,2]
[333392087,1722100233166,-1000.0,0.000109,2]
[333392088,1722100233175,-1000.0,0.000109,3]
[333392089,1722100233185,-1000.0,0.000109,3]
[333392090,1722100233195,-1000.0,0.000109,3]
[333392091,1722100233205,-817.0,0.000109,3]
[333392092,1722100233214,-1000.0,0.000109,2]
[333392093,1722100233224,-328.85448067,0.000109,2]
[333392094,1722100233234,-1358.30506084,0.000109,2]
[333392095,1722100233243,-480.0,0.00010902,2]
[333392096,1722100233253,-500.0,0.00010912,2]
[333392097,1722100233262,-165.46711443,0.00010957,2]
[333392098,1722100233272,-453.69574252,0.00010958,2]
[333392099,1722100233281,-622.59869064,0.00010958,2]
[333392100,1722100233291,-500.0,0.00010958,2]
[333392101,1722100233301,-500.0,0.00010958,2]
[333392102,1722100233311,-500.0,0.00010958,2]
[333392103,1722100233320,-351.63,0.00010958,2]
[333392104,1722100233330,-500.0,0.00010958,2]
[333392105,1722100233339,-334.34,0.00010958,2]
[333392106,1722100233349,-548.74,0.00010958,2]
[333392107,1722100233358,-582.23561616,0.00010958,2]
[333392108,1722100233368,-500.0,0.00010958,2]
[333392109,1722100233378,-354.87707965,0.00010958,2]
[333392110,1722100233388,-500.0,0.00010958,2]